fUST/lending_fUST_20260521
["ID","MTS","AMOUNT","RATE_DAILY","PERIOD"]
[422775173,1779378643000,-505.98034086,8.219e-05,2]
[422775177,1779378643000,-500.54741609,8.219e-05,2]
[422775175,1779378643000,-664.344349,8.219e-05,2]
[422775181,1779378643000,-500.0,8.219e-05,2]
[422775179,1779378643000,-664.344349,8.219e-05,2]
[422775185,1779378643000,-500.0,8.219e-05,2]
[422775183,1779378643000,-792.28,8.219e-05,2]
[422775188,1779378643000,-2777.86,8.219e-05,2]
[422775190,1779378643000,-500.66005033,8.219e-05,2]
[422775192,1779378643000,-664.344349,8.219e-05,2]
[422775187,1779378643000,-664.344349,8.219e-05,2]
[422775205,1779378643000,-500.0,8.219e-05,2]
[422775196,1779378643000,-500.26910254,8.219e-05,2]
[422775198,1779378643000,-500.55901334,8.219e-05,2]
[422775209,1779378643000,-500.0,8.219e-05,2]
[422775200,1779378643000,-330.22261529,8.219e-05,2]
[422775203,1779378643000,-522.9034137,8.219e-05,2]
[422775207,1779378643000,-502.29997054,8.219e-05,2]
[422775202,1779378643000,-500.0,8.219e-05,2]
[422775211,1779378643000,-500.61597446,8.219e-05,2]
[422775223,1779378643000,-500.0,8.219e-05,2]
[422775215,1779378643000,-500.0,8.219e-05,2]
[422775213,1779378643000,-500.49075866,8.219e-05,2]
[422775216,1779378643000,-507.68728823,8.219e-05,2]
[422775218,1779378643000,-500.77448518,8.219e-05,2]
[422775296,1779378643000,-500.0,8.219e-05,2]
[422775286,1779378643000,-282.930381,8.219e-05,2]
[422775354,1779378643000,-500.0,8.219e-05,2]
[422775298,1779378643000,-500.0,8.219e-05,2]
[422775371,1779378643000,-227.344388,8.219e-05,2]
[422775372,1779378643000,-227.344388,8.219e-05,2]
[422775374,1779378643000,-958.96,8.219e-05,2]
[422775376,1779378643000,-227.344388,8.219e-05,2]
[422775378,1779378643000,-227.344388,8.219e-05,2]
[422775359,1779378643000,-543.9890624,8.219e-05,2]
[422775361,1779378643000,-500.0,8.219e-05,2]
[422775367,1779378643000,-491.21738809,8.219e-05,2]
[422775365,1779378643000,-2362.26,8.219e-05,2]
[422775363,1779378643000,-500.58613047,8.219e-05,2]
[422775380,1779378643000,-500.0,8.219e-05,2]
[422775369,1779378643000,-500.0,8.219e-05,2]
[422775382,1779378643000,-501.09537604,8.219e-05,2]
[422775386,1779378643000,-500.0,8.219e-05,2]
[422775388,1779378643000,-227.344388,8.219e-05,2]
[422775392,1779378643000,-227.344388,8.219e-05,2]
[422775394,1779378643000,-500.0,8.219e-05,2]
[422775390,1779378643000,-227.344388,8.219e-05,2]
[422775396,1779378643000,-500.0,8.219e-05,2]
[422775399,1779378643000,-501.13054405,8.219e-05,2]
[422775397,1779378643000,-500.94062461,8.219e-05,2]
[422775401,1779378643000,-500.0,8.219e-05,2]
[422775405,1779378643000,-571.69042413,8.219e-05,2]
[422775403,1779378643000,-500.0,8.219e-05,2]
[422775407,1779378643000,-626.31000665,8.219e-05,2]
[422775413,1779378643000,-500.0,8.219e-05,2]
[422775409,1779378643000,-502.02064029,8.219e-05,2]
[422775411,1779378643000,-500.0,8.219e-05,2]
[422775290,1779378643000,-839.43,8.219e-05,2]
[422775356,1779378643000,-500.0,8.219e-05,2]
[422775358,1779378643000,-501.42836215,8.219e-05,2]
[422775384,1779378643000,-227.344388,8.219e-05,2]
[422775348,1779378643000,-501.35156805,8.219e-05,2]
[422775352,1779378643000,-500.0,8.219e-05,2]
[422775288,1779378643000,-500.0,8.219e-05,2]
[422775299,1779378643000,-501.34269705,8.219e-05,2]
[422775292,1779378643000,-500.0,8.219e-05,2]
[422775294,1779378643000,-500.0,8.219e-05,2]
[422775302,1779378643000,-500.43753662,8.219e-05,2]
[422775304,1779378643000,-500.50625638,8.219e-05,2]
[422775306,1779378643000,-684.62,8.219e-05,2]
[422775308,1779378643000,-530.62,8.219e-05,2]
[422775321,1779378643000,-501.57061009,8.219e-05,2]
[422775319,1779378643000,-501.18776409,8.219e-05,2]
[422775312,1779378643000,-503.36770413,8.219e-05,2]
[422775313,1779378643000,-500.4654226,8.219e-05,2]
[422775315,1779378643000,-501.24458947,8.219e-05,2]
[422775317,1779378643000,-500.0,8.219e-05,2]
[422775309,1779378643000,-2379.16,8.219e-05,2]
[422775350,1779378643000,-838.66,8.219e-05,2]
[422775323,1779378643000,-500.81172404,8.219e-05,2]
[422775339,1779378643000,-500.0,8.219e-05,2]
[422775346,1779378643000,-500.0,8.219e-05,2]
[422775343,1779378643000,-500.78020891,8.219e-05,2]
[422775341,1779378643000,-500.0,8.219e-05,2]
[422775336,1779378643000,-500.55106637,8.219e-05,2]
[422775345,1779378643000,-501.69786003,8.219e-05,2]
[422775330,1779378643000,-501.45750021,8.219e-05,2]
[422775332,1779378643000,-501.47,8.219e-05,2]
[422775328,1779378643000,-501.31247707,8.219e-05,2]
[422775327,1779378643000,-500.0,8.219e-05,2]
[422775325,1779378643000,-572.52563223,8.219e-05,2]
[422775335,1779378643000,-471.46847152,8.219e-05,2]
[422775499,1779378644000,-1106.3334,8.493e-05,2]
[422775500,1779378644000,-500.0,8.493e-05,2]
[422775504,1779378644000,-500.0,8.493e-05,2]
[422775497,1779378644000,-2575.74303174,8.479e-05,2]
[422775493,1779378644000,-370.71487908,8.463e-05,2]
[422775495,1779378644000,-2575.74303174,8.479e-05,2]
[422775467,1779378644000,-300.0,8.382e-05,2]
[422775490,1779378644000,-176.69706827,8.463e-05,2]
[422775488,1779378644000,-537.6845,8.462e-05,2]
[422775484,1779378644000,-162.380719,8.462e-05,2]
[422775486,1779378644000,-537.6845,8.462e-05,2]
[422775471,1779378644000,-300.0,8.382e-05,2]
[422775510,1779378644000,-500.0,8.493e-05,2]
[422775491,1779378644000,-278.58769646,8.463e-05,2]
[422775508,1779378644000,-500.0,8.493e-05,2]
[422775545,1779378644000,-542.8,8.493e-05,2]
[422775506,1779378644000,-500.0,8.493e-05,2]
[422775512,1779378644000,-500.0,8.493e-05,2]
[422775518,1779378644000,-500.0,8.493e-05,2]
[422775515,1779378644000,-498.41348543,8.493e-05,2]
[422775521,1779378644000,-500.0,8.493e-05,2]
[422775536,1779378644000,-500.0,8.493e-05,2]
[422775523,1779378644000,-500.0,8.493e-05,2]
[422775526,1779378644000,-500.0,8.493e-05,2]
[422775532,1779378644000,-500.0,8.493e-05,2]
[422775534,1779378644000,-503.62,8.493e-05,2]
[422775529,1779378644000,-500.0,8.493e-05,2]
[422775539,1779378644000,-500.0,8.493e-05,2]
[422775542,1779378644000,-500.0,8.493e-05,2]
[422775473,1779378644000,-300.0,8.382e-05,2]
[422775502,1779378644000,-500.0,8.493e-05,2]
[422775465,1779378644000,-300.0,8.382e-05,2]
[422775427,1779378644000,-500.0,8.219e-05,2]
[422775482,1779378644000,-500.0,8.462e-05,2]
[422775415,1779378644000,-500.0,8.219e-05,2]
[422775551,1779378644000,-500.0,8.493e-05,2]
[422775425,1779378644000,-500.0,8.219e-05,2]
[422775416,1779378644000,-500.0,8.219e-05,2]
[422775429,1779378644000,-500.0,8.219e-05,2]
[422775431,1779378644000,-500.0,8.219e-05,2]
[422775433,1779378644000,-500.0,8.219e-05,2]
[422775418,1779378644000,-500.0,8.219e-05,2]
[422775424,1779378644000,-500.0,8.219e-05,2]
[422775420,1779378644000,-500.0,8.219e-05,2]
[422775435,1779378644000,-500.26724446,8.219e-05,2]
[422775439,1779378644000,-185.35743954,8.219e-05,2]
[422775437,1779378644000,-151.217223,8.219e-05,2]
[422775422,1779378644000,-500.65766974,8.219e-05,2]
[422775441,1779378644000,-2223.79610342,8.279e-05,2]
[422775451,1779378644000,-300.0,8.382e-05,2]
[422775442,1779378644000,-2223.79610342,8.279e-05,2]
[422775480,1779378644000,-151.0,8.462e-05,2]
[422775478,1779378644000,-205.33607344,8.452e-05,2]
[422775476,1779378644000,-600.0,8.382e-05,2]
[422775475,1779378644000,-300.0,8.382e-05,2]
[422775462,1779378644000,-300.0,8.382e-05,2]
[422775464,1779378644000,-300.0,8.382e-05,2]
[422775469,1779378644000,-300.0,8.382e-05,2]
[422775460,1779378644000,-300.0,8.382e-05,2]
[422775444,1779378644000,-2397.74607645,8.379e-05,2]
[422775456,1779378644000,-300.0,8.382e-05,2]
[422775446,1779378644000,-2397.74607645,8.379e-05,2]
[422775458,1779378644000,-300.0,8.382e-05,2]
[422775454,1779378644000,-300.0,8.382e-05,2]
[422775452,1779378644000,-300.0,8.382e-05,2]
[422775448,1779378644000,-300.0,8.382e-05,2]
[422775555,1779378644000,-500.0,8.493e-05,2]
[422775553,1779378644000,-500.0,8.493e-05,2]
[422775557,1779378644000,-500.0,8.493e-05,2]
[422775609,1779378644000,-500.0,8.493e-05,2]
[422775628,1779378644000,-500.0,8.493e-05,2]
[422775624,1779378644000,-502.75299473,8.493e-05,2]
[422775622,1779378644000,-500.0,8.493e-05,2]
[422775626,1779378644000,-500.0,8.493e-05,2]
[422775631,1779378644000,-500.0,8.493e-05,2]
[422775636,1779378644000,-500.0,8.493e-05,2]
[422775646,1779378644000,-500.0,8.493e-05,2]
[422775648,1779378644000,-500.0,8.493e-05,2]
[422775650,1779378644000,-500.0,8.493e-05,2]
[422775653,1779378644000,-500.0,8.493e-05,2]
[422775635,1779378644000,-584.24,8.493e-05,2]
[422775638,1779378644000,-500.0,8.493e-05,2]
[422775640,1779378644000,-500.0,8.493e-05,2]
[422775652,1779378644000,-500.0,8.493e-05,2]
[422775642,1779378644000,-500.0,8.493e-05,2]
[422775644,1779378644000,-500.0,8.493e-05,2]
[422775671,1779378644000,-500.0,8.493e-05,2]
[422775662,1779378644000,-500.0,8.493e-05,2]
[422775679,1779378644000,-500.0,8.493e-05,2]
[422775666,1779378644000,-500.0,8.493e-05,2]
[422775681,1779378644000,-557.26802676,8.493e-05,2]
[422775670,1779378644000,-503.21627591,8.493e-05,2]
[422775633,1779378644000,-500.0,8.493e-05,2]
[422775668,1779378644000,-500.0,8.493e-05,2]
[422775673,1779378644000,-500.0,8.493e-05,2]
[422775675,1779378644000,-500.0,8.493e-05,2]
[422775661,1779378644000,-500.0,8.493e-05,2]
[422775659,1779378644000,-500.0,8.493e-05,2]
[422775655,1779378644000,-500.0,8.493e-05,2]
[422775657,1779378644000,-420.690807,8.493e-05,2]
[422775677,1779378644000,-500.0,8.493e-05,2]
[422775629,1779378644000,-500.0,8.493e-05,2]
[422775664,1779378644000,-500.0,8.493e-05,2]
[422775613,1779378644000,-500.0,8.493e-05,2]
[422775620,1779378644000,-500.0,8.493e-05,2]
[422775565,1779378644000,-500.0,8.493e-05,2]
[422775569,1779378644000,-500.5784191,8.493e-05,2]
[422775571,1779378644000,-500.0,8.493e-05,2]
[422775572,1779378644000,-635.20227371,8.493e-05,2]
[422775559,1779378644000,-500.0,8.493e-05,2]
[422775561,1779378644000,-500.0,8.493e-05,2]
[422775563,1779378644000,-500.0,8.493e-05,2]
[422775576,1779378644000,-500.0,8.493e-05,2]
[422775574,1779378644000,-500.0,8.493e-05,2]
[422775580,1779378644000,-500.0,8.493e-05,2]
[422775578,1779378644000,-500.0,8.493e-05,2]
[422775592,1779378644000,-500.0,8.493e-05,2]
[422775581,1779378644000,-500.0,8.493e-05,2]
[422775594,1779378644000,-500.0,8.493e-05,2]
[422775567,1779378644000,-541.4431188,8.493e-05,2]
[422775600,1779378644000,-500.0,8.493e-05,2]
[422775583,1779378644000,-500.91313952,8.493e-05,2]
[422775618,1779378644000,-500.0,8.493e-05,2]
[422775615,1779378644000,-500.75076898,8.493e-05,2]
[422775611,1779378644000,-500.0,8.493e-05,2]
[422775588,1779378644000,-500.0,8.493e-05,2]
[422775585,1779378644000,-395.53727034,8.493e-05,2]
[422775607,1779378644000,-500.0,8.493e-05,2]
[422775616,1779378644000,-500.0,8.493e-05,2]
[422775587,1779378644000,-500.0,8.493e-05,2]
[422775605,1779378644000,-500.0,8.493e-05,2]
[422775596,1779378644000,-500.0,8.493e-05,2]
[422775602,1779378644000,-500.0,8.493e-05,2]
[422775603,1779378644000,-500.0,8.493e-05,2]
[422775590,1779378644000,-541.84,8.493e-05,2]
[422775598,1779378644000,-166.56887103,8.493e-05,2]
[422775757,1779378645000,-450.30060714,8.493e-05,2]
[422775766,1779378645000,-501.29792266,8.493e-05,2]
[422775760,1779378645000,-500.0,8.493e-05,2]
[422775755,1779378645000,-500.76996663,8.493e-05,2]
[422775759,1779378645000,-500.0,8.493e-05,2]
[422775764,1779378645000,-500.0,8.493e-05,2]
[422775762,1779378645000,-501.25136034,8.493e-05,2]
[422775753,1779378645000,-500.0,8.493e-05,2]
[422775750,1779378645000,-502.41331237,8.493e-05,2]
[422775772,1779378645000,-500.57521612,8.493e-05,2]
[422775748,1779378645000,-500.0,8.493e-05,2]
[422775768,1779378645000,-500.0,8.493e-05,2]
[422775751,1779378645000,-500.0,8.493e-05,2]
[422775792,1779378645000,-500.0,8.493e-05,2]
[422775770,1779378645000,-2581.97744,8.493e-05,2]
[422775773,1779378645000,-501.64525682,8.493e-05,2]
[422775777,1779378645000,-500.0,8.493e-05,2]
[422775785,1779378645000,-500.0,8.493e-05,2]
[422775789,1779378645000,-506.61467452,8.493e-05,2]
[422775790,1779378645000,-500.0,8.493e-05,2]
[422775787,1779378645000,-278.901296,8.493e-05,2]
[422775794,1779378645000,-501.46988491,8.493e-05,2]
[422775796,1779378645000,-500.0,8.493e-05,2]
[422775783,1779378645000,-500.0,8.493e-05,2]
[422775781,1779378645000,-500.0,8.493e-05,2]
[422775779,1779378645000,-500.0,8.493e-05,2]
[422775735,1779378645000,-501.63689361,8.493e-05,2]
[422775798,1779378645000,-500.0,8.493e-05,2]
[422775775,1779378645000,-128809.545198,8.493e-05,2]
[422775746,1779378645000,-500.0,8.493e-05,2]
[422775721,1779378645000,-500.0,8.493e-05,2]
[422775733,1779378645000,-578.88,8.493e-05,2]
[422775800,1779378645000,-903.67,8.493e-05,2]
[422775682,1779378645000,-500.0,8.493e-05,2]
[422775686,1779378645000,-500.0,8.493e-05,2]
[422775688,1779378645000,-500.0,8.493e-05,2]
[422775700,1779378645000,-500.0,8.493e-05,2]
[422775690,1779378645000,-500.0,8.493e-05,2]
[422775692,1779378645000,-500.0,8.493e-05,2]
[422775705,1779378645000,-500.0,8.493e-05,2]
[422775701,1779378645000,-500.41584361,8.493e-05,2]
[422775694,1779378645000,-500.0,8.493e-05,2]
[422775703,1779378645000,-500.0,8.493e-05,2]
[422775706,1779378645000,-500.0,8.493e-05,2]
[422775723,1779378645000,-500.44445416,8.493e-05,2]
[422775719,1779378645000,-500.0,8.493e-05,2]
[422775717,1779378645000,-500.0,8.493e-05,2]
[422775724,1779378645000,-500.0,8.493e-05,2]
[422775715,1779378645000,-500.0,8.493e-05,2]
[422775712,1779378645000,-500.0,8.493e-05,2]
[422775713,1779378645000,-500.0,8.493e-05,2]
[422775708,1779378645000,-501.07805286,8.493e-05,2]
[422775710,1779378645000,-500.0,8.493e-05,2]
[422775728,1779378645000,-500.0,8.493e-05,2]
[422775726,1779378645000,-500.71472684,8.493e-05,2]
[422775730,1779378645000,-500.0,8.493e-05,2]
[422775731,1779378645000,-500.0,8.493e-05,2]
[422775742,1779378645000,-500.0,8.493e-05,2]
[422775737,1779378645000,-500.0,8.493e-05,2]
[422775740,1779378645000,-500.55290999,8.493e-05,2]
[422775739,1779378645000,-502.83450252,8.493e-05,2]
[422775744,1779378645000,-500.0,8.493e-05,2]
[422775802,1779378645000,-500.0,8.493e-05,2]
[422775684,1779378645000,-584.91699935,8.493e-05,2]
[422775805,1779378645000,-503.54273371,8.493e-05,2]
[422775863,1779378645000,-500.0,8.493e-05,2]
[422775873,1779378645000,-500.0,8.493e-05,2]
[422775874,1779378645000,-500.0,8.493e-05,2]
[422775871,1779378645000,-231.71669623,8.493e-05,2]
[422775876,1779378645000,-501.05296294,8.493e-05,2]
[422775880,1779378645000,-500.65030319,8.493e-05,2]
[422775878,1779378645000,-500.92030679,8.493e-05,2]
[422775882,1779378645000,-500.0,8.493e-05,2]
[422775893,1779378645000,-500.51424063,8.493e-05,2]
[422775891,1779378645000,-500.0,8.493e-05,2]
[422775895,1779378645000,-531.0107082,8.493e-05,2]
[422775897,1779378645000,-500.0,8.493e-05,2]
[422775883,1779378645000,-500.0,8.493e-05,2]
[422775899,1779378645000,-500.0,8.493e-05,2]
[422775887,1779378645000,-500.0,8.493e-05,2]
[422775885,1779378645000,-500.0,8.493e-05,2]
[422775889,1779378645000,-500.0,8.493e-05,2]
[422775903,1779378645000,-557.92780392,8.493e-05,2]
[422775901,1779378645000,-500.0,8.493e-05,2]
[422775905,1779378645000,-500.0,8.493e-05,2]
[422775906,1779378645000,-500.0,8.493e-05,2]
[422775908,1779378645000,-500.0,8.493e-05,2]
[422775917,1779378645000,-500.0,8.493e-05,2]
[422775910,1779378645000,-500.0,8.493e-05,2]
[422775921,1779378645000,-501.07768375,8.493e-05,2]
[422775919,1779378645000,-501.05104627,8.493e-05,2]
[422775914,1779378645000,-501.00053133,8.493e-05,2]
[422775916,1779378645000,-500.0,8.493e-05,2]
[422775912,1779378645000,-501.59169404,8.493e-05,2]
[422775865,1779378645000,-500.66704319,8.493e-05,2]
[422775861,1779378645000,-500.0,8.493e-05,2]
[422775803,1779378645000,-500.0,8.493e-05,2]
[422775859,1779378645000,-501.19305898,8.493e-05,2]
[422775816,1779378645000,-521.76182001,8.493e-05,2]
[422775807,1779378645000,-500.0,8.493e-05,2]
[422775814,1779378645000,-500.0,8.493e-05,2]
[422775822,1779378645000,-291.00342421,8.493e-05,2]
[422775820,1779378645000,-500.0,8.493e-05,2]
[422775818,1779378645000,-500.0,8.493e-05,2]
[422775823,1779378645000,-154.89285204,8.493e-05,2]
[422775810,1779378645000,-500.33373265,8.493e-05,2]
[422775869,1779378645000,-500.99344774,8.493e-05,2]
[422775812,1779378645000,-500.0,8.493e-05,2]
[422775825,1779378645000,-501.49393242,8.493e-05,2]
[422775827,1779378645000,-501.58746631,8.493e-05,2]
[422775829,1779378645000,-501.40608444,8.493e-05,2]
[422775833,1779378645000,-500.0,8.493e-05,2]
[422775809,1779378645000,-500.38497052,8.493e-05,2]
[422775835,1779378645000,-500.0,8.493e-05,2]
[422775831,1779378645000,-501.80870024,8.493e-05,2]
[422775858,1779378645000,-500.74000978,8.493e-05,2]
[422775856,1779378645000,-501.40867943,8.493e-05,2]
[422775852,1779378645000,-500.5861989,8.493e-05,2]
[422775854,1779378645000,-500.0,8.493e-05,2]
[422775850,1779378645000,-500.0,8.493e-05,2]
[422775867,1779378645000,-502.41190848,8.493e-05,2]
[422775847,1779378645000,-512.79201713,8.493e-05,2]
[422775841,1779378645000,-500.0,8.493e-05,2]
[422775839,1779378645000,-500.0,8.493e-05,2]
[422775845,1779378645000,-501.03987391,8.493e-05,2]
[422775843,1779378645000,-500.0,8.493e-05,2]
[422775837,1779378645000,-542.11614837,8.493e-05,2]
[422775849,1779378645000,-504.27653676,8.493e-05,2]
[422776003,1779378646000,-2881.359895,8.493e-05,2]
[422776005,1779378646000,-501.3029809,8.493e-05,2]
[422775990,1779378646000,-2881.359895,8.493e-05,2]
[422775988,1779378646000,-2881.359895,8.493e-05,2]
[422775992,1779378646000,-2881.359895,8.493e-05,2]
[422775994,1779378646000,-500.0,8.493e-05,2]
[422776001,1779378646000,-500.0,8.493e-05,2]
[422776000,1779378646000,-500.0,8.493e-05,2]
[422775998,1779378646000,-2881.359895,8.493e-05,2]
[422775996,1779378646000,-2881.359895,8.493e-05,2]
[422775984,1779378646000,-2881.359895,8.493e-05,2]
[422775986,1779378646000,-500.0,8.493e-05,2]
[422776009,1779378646000,-500.73390282,8.493e-05,2]
[422776035,1779378646000,-500.0,8.493e-05,2]
[422776011,1779378646000,-502.90784818,8.493e-05,2]
[422776013,1779378646000,-500.0,8.493e-05,2]
[422776015,1779378646000,-500.0,8.493e-05,2]
[422776021,1779378646000,-500.0,8.493e-05,2]
[422776017,1779378646000,-500.0,8.493e-05,2]
[422776023,1779378646000,-500.0,8.493e-05,2]
[422776019,1779378646000,-500.0,8.493e-05,2]
[422776025,1779378646000,-500.0,8.493e-05,2]
[422776026,1779378646000,-500.0,8.493e-05,2]
[422776028,1779378646000,-500.87795346,8.493e-05,2]
[422776030,1779378646000,-500.0,8.493e-05,2]
[422776032,1779378646000,-500.0,8.493e-05,2]
[422776034,1779378646000,-500.98901805,8.493e-05,2]
[422775982,1779378646000,-500.84169227,8.493e-05,2]
[422776007,1779378646000,-500.0,8.493e-05,2]
[422775981,1779378646000,-2881.359895,8.493e-05,2]
[422775937,1779378646000,-360.808738,8.493e-05,2]
[422775975,1779378646000,-492.45,8.493e-05,2]
[422776037,1779378646000,-500.0,8.493e-05,2]
[422775923,1779378646000,-360.808738,8.493e-05,2]
[422775925,1779378646000,-360.808738,8.493e-05,2]
[422775929,1779378646000,-360.808738,8.493e-05,2]
[422775927,1779378646000,-500.0,8.493e-05,2]
[422775931,1779378646000,-360.808738,8.493e-05,2]
[422775943,1779378646000,-501.22262463,8.493e-05,2]
[422775945,1779378646000,-1429.2,8.493e-05,2]
[422775934,1779378646000,-360.808738,8.493e-05,2]
[422775932,1779378646000,-360.808738,8.493e-05,2]
[422775947,1779378646000,-500.0,8.493e-05,2]
[422775949,1779378646000,-500.0,8.493e-05,2]
[422775939,1779378646000,-360.808738,8.493e-05,2]
[422775950,1779378646000,-492.45,8.493e-05,2]
[422775952,1779378646000,-492.45,8.493e-05,2]
[422775941,1779378646000,-501.09674288,8.493e-05,2]
[422775954,1779378646000,-500.96444607,8.493e-05,2]
[422775956,1779378646000,-492.45,8.493e-05,2]
[422775959,1779378646000,-500.49786065,8.493e-05,2]
[422775957,1779378646000,-492.45,8.493e-05,2]
[422775961,1779378646000,-492.45,8.493e-05,2]
[422775965,1779378646000,-2881.359895,8.493e-05,2]
[422775969,1779378646000,-500.0,8.493e-05,2]
[422775967,1779378646000,-2881.359895,8.493e-05,2]
[422775963,1779378646000,-501.03714716,8.493e-05,2]
[422775964,1779378646000,-492.45,8.493e-05,2]
[422775973,1779378646000,-2881.359895,8.493e-05,2]
[422775971,1779378646000,-492.45,8.493e-05,2]
[422775977,1779378646000,-500.0,8.493e-05,2]
[422775979,1779378646000,-2881.359895,8.493e-05,2]
[422776041,1779378646000,-500.0,8.493e-05,2]
[422776039,1779378646000,-500.0,8.493e-05,2]
[422776143,1779378646000,-500.0,8.493e-05,2]
[422776113,1779378646000,-500.0,8.493e-05,2]
[422776117,1779378646000,-500.3583521,8.493e-05,2]
[422776114,1779378646000,-502.34755753,8.493e-05,2]
[422776118,1779378646000,-373.325268,8.493e-05,2]
[422776128,1779378646000,-503.41126342,8.493e-05,2]
[422776120,1779378646000,-500.0,8.493e-05,2]
[422776123,1779378646000,-373.325268,8.493e-05,2]
[422776127,1779378646000,-373.325268,8.493e-05,2]
[422776132,1779378646000,-501.04232744,8.493e-05,2]
[422776124,1779378646000,-373.325268,8.493e-05,2]
[422776134,1779378646000,-501.05765059,8.493e-05,2]
[422776136,1779378646000,-373.325268,8.493e-05,2]
[422776140,1779378646000,-373.325268,8.493e-05,2]
[422776142,1779378646000,-373.325268,8.493e-05,2]
[422776138,1779378646000,-500.0,8.493e-05,2]
[422776147,1779378646000,-503.02773617,8.493e-05,2]
[422776151,1779378646000,-176.830321,8.493e-05,2]
[422776155,1779378646000,-500.0,8.493e-05,2]
[422776153,1779378646000,-501.09586322,8.493e-05,2]
[422776145,1779378646000,-357.15624351,8.493e-05,2]
[422776149,1779378646000,-373.325268,8.493e-05,2]
[422776157,1779378646000,-176.830321,8.493e-05,2]
[422776158,1779378646000,-176.830321,8.493e-05,2]
[422776160,1779378646000,-176.830321,8.493e-05,2]
[422776164,1779378646000,-643.86843824,8.493e-05,2]
[422776162,1779378646000,-176.830321,8.493e-05,2]
[422776166,1779378646000,-176.830321,8.493e-05,2]
[422776043,1779378646000,-501.61947116,8.493e-05,2]
[422776168,1779378646000,-500.0,8.493e-05,2]
[422776111,1779378646000,-558.75375313,8.493e-05,2]
[422776108,1779378646000,-373.325268,8.493e-05,2]
[422776130,1779378646000,-373.325268,8.493e-05,2]
[422776106,1779378646000,-500.19240763,8.493e-05,2]
[422776045,1779378646000,-500.0,8.493e-05,2]
[422776048,1779378646000,-501.54859194,8.493e-05,2]
[422776050,1779378646000,-424.16,8.493e-05,2]
[422776047,1779378646000,-500.0,8.493e-05,2]
[422776052,1779378646000,-500.0,8.493e-05,2]
[422776054,1779378646000,-424.16,8.493e-05,2]
[422776056,1779378646000,-424.16,8.493e-05,2]
[422776058,1779378646000,-500.0,8.493e-05,2]
[422776060,1779378646000,-424.16,8.493e-05,2]
[422776105,1779378646000,-373.325268,8.493e-05,2]
[422776065,1779378646000,-500.0,8.493e-05,2]
[422776076,1779378646000,-500.0,8.493e-05,2]
[422776080,1779378646000,-424.16,8.493e-05,2]
[422776082,1779378646000,-424.16,8.493e-05,2]
[422776064,1779378646000,-500.0,8.493e-05,2]
[422776062,1779378646000,-424.16,8.493e-05,2]
[422776067,1779378646000,-424.16,8.493e-05,2]
[422776101,1779378646000,-500.53229273,8.493e-05,2]
[422776078,1779378646000,-424.16,8.493e-05,2]
[422776103,1779378646000,-373.325268,8.493e-05,2]
[422776097,1779378646000,-500.601898,8.493e-05,2]
[422776090,1779378646000,-501.61049014,8.493e-05,2]
[422776091,1779378646000,-501.53148666,8.493e-05,2]
[422776099,1779378646000,-502.07127785,8.493e-05,2]
[422776093,1779378646000,-500.60141661,8.493e-05,2]
[422776088,1779378646000,-500.0,8.493e-05,2]
[422776086,1779378646000,-424.16,8.493e-05,2]
[422776084,1779378646000,-424.16,8.493e-05,2]
[422776069,1779378646000,-424.16,8.493e-05,2]
[422776095,1779378646000,-500.0,8.493e-05,2]
[422776248,1779378647000,-277.53974,8.493e-05,2]
[422776252,1779378647000,-277.53974,8.493e-05,2]
[422776250,1779378647000,-277.53974,8.493e-05,2]
[422776257,1779378647000,-500.0,8.493e-05,2]
[422776245,1779378647000,-277.53974,8.493e-05,2]
[422776246,1779378647000,-277.53974,8.493e-05,2]
[422776259,1779378647000,-172.324057,8.493e-05,2]
[422776241,1779378647000,-500.21268206,8.493e-05,2]
[422776242,1779378647000,-500.78372838,8.493e-05,2]
[422776239,1779378647000,-277.53974,8.493e-05,2]
[422776235,1779378647000,-277.53974,8.493e-05,2]
[422776233,1779378647000,-277.53974,8.493e-05,2]
[422776255,1779378647000,-500.0,8.493e-05,2]
[422776237,1779378647000,-277.53974,8.493e-05,2]
[422776254,1779378647000,-277.53974,8.493e-05,2]
[422776288,1779378647000,-172.324057,8.493e-05,2]